[Event "Vetern-SM 50+ 2025"]
[Site "Uppsala, Sweden"]
[Date "2025.06.29"]
[Round "2.1"]
[White "Vernersson, Per"]
[Black "Hedin, Niclas"]
[Result "1-0"]
[TimeControl "90 min for 40 move + 30 min with an increment of 30 sec starting move 1"]
[WhiteFideId "1700863"]
[BlackFideId "1720708"]
[WhiteElo "2258"]
[BlackElo "1953"]

1. d4 {[%clk 01:30:56]} {[%emt 00:00:03]} d5 {[%clk 01:30:49]} {[%emt
00:00:10]} 2. c4 {[%clk 01:31:17]} {[%emt 00:00:10]} c6 {[%clk 01:31:10]}
{[%emt 00:00:09]} 3. Nf3 {[%clk 01:31:35]} {[%emt 00:00:13]} Nf6 {[%clk
01:31:24]} {[%emt 00:00:14]} 4. Nc3 {[%clk 01:31:57]} {[%emt 00:00:09]} e6
{[%clk 01:31:50]} {[%emt 00:00:04]} 5. e3 {[%clk 01:32:02]} {[%emt 00:00:26]}
Nbd7 {[%clk 01:32:01]} {[%emt 00:00:18]} 6. Qc2 {[%clk 01:32:17]} {[%emt
00:00:16]} Bd6 {[%clk 01:31:28]} {[%emt 00:01:02]} 7. Be2 {[%clk 01:32:29]}
{[%emt 00:00:18]} O-O {[%clk 01:31:31]} {[%emt 00:00:27]} 8. O-O {[%clk
01:32:44]} {[%emt 00:00:16]} dxc4 {[%clk 01:15:50]} {[%emt 00:16:11]} 9. a4
{[%clk 01:32:52]} {[%emt 00:00:22]} a5 {[%clk 01:06:04]} {[%emt 00:10:15]} 10.
Bxc4 {[%clk 01:33:02]} {[%emt 00:00:21]} Nb6 {[%clk 00:56:10]} {[%emt
00:10:23]} 11. Bb3 {[%clk 01:29:22]} {[%emt 00:04:10]} Nbd5 {[%clk 00:53:16]}
{[%emt 00:03:25]} 12. e4 {[%clk 01:28:44]} {[%emt 00:01:08]} Nb4 {[%clk
00:53:38]} {[%emt 00:00:07]} 13. Qe2 {[%clk 01:28:43]} {[%emt 00:00:32]} Be7
{[%clk 00:53:00]} {[%emt 00:01:07]} 14. Rd1 {[%clk 01:23:48]} {[%emt 00:05:25]}
b6 {[%clk 00:50:31]} {[%emt 00:03:00]} 15. e5 {[%clk 01:19:02]} {[%emt
00:05:15]} Nfd5 {[%clk 00:49:50]} {[%emt 00:01:11]} 16. Qe4 {[%clk 01:16:35]}
{[%emt 00:02:56]} Ra7 {[%clk 00:39:09]} {[%emt 00:11:12]} 17. Qg4 {[%clk
01:13:23]} {[%emt 00:03:42]} Kh8 {[%clk 00:38:09]} {[%emt 00:01:30]} 18. Bg5
{[%clk 01:10:34]} {[%emt 00:03:19]} f6 {[%clk 00:37:28]} {[%emt 00:01:10]} 19.
exf6 {[%clk 01:10:05]} {[%emt 00:01:01]} gxf6 {[%clk 00:37:44]} {[%emt
00:00:13]} 20. Bh6 {[%clk 01:05:02]} {[%emt 00:05:33]} Rg8 {[%clk 00:38:03]}
{[%emt 00:00:11]} 21. Qh5 {[%clk 01:05:01]} {[%emt 00:00:31]} Bf8 {[%clk
00:37:05]} {[%emt 00:01:29]} 22. g3 {[%clk 00:56:03]} {[%emt 00:09:27]} e5
{[%clk 00:33:48]} {[%emt 00:03:47]} 23. h3 {[%clk 00:50:09]} {[%emt 00:06:25]}
Bxh6 {[%clk 00:22:09]} {[%emt 00:12:08]} 24. Qxh6 {[%clk 00:49:05]} {[%emt
00:01:35]} Rg6 {[%clk 00:22:15]} {[%emt 00:00:23]} 25. Qh4 {[%clk 00:48:58]}
{[%emt 00:00:37]} e4 {[%clk 00:15:41]} {[%emt 00:07:04]} 26. Ne5 {[%clk
00:46:44]} {[%emt 00:02:45]} Rg5 {[%clk 00:13:42]} {[%emt 00:02:28]} 27. Nxe4
{[%clk 00:46:56]} {[%emt 00:00:19]} Rg8 {[%clk 00:12:45]} {[%emt 00:01:26]} 28.
Bxd5 {[%clk 00:43:30]} {[%emt 00:03:56]} cxd5 {[%clk 00:08:43]} {[%emt
00:04:33]} 29. Nxf6 {[%clk 00:42:13]} {[%emt 00:01:46]} Rgg7 {[%clk 00:06:36]}
{[%emt 00:02:37]} 30. Kh2 {[%clk 00:39:22]} {[%emt 00:03:22]} Rac7 {[%clk
00:06:19]} {[%emt 00:00:47]} 31. Rac1 {[%clk 00:39:28]} {[%emt 00:00:23]} Bf5
{[%clk 00:05:15]} {[%emt 00:01:32]} 32. Rxc7 {[%clk 00:37:45]} {[%emt
00:02:16]} Qxc7 {[%clk 00:04:45]} {[%emt 00:01:00]} 33. Qh5 {[%clk 00:37:59]}
{[%emt 00:00:15]} Bg6 {[%clk 00:03:41]} {[%emt 00:01:35]} 34. Nxg6+ {[%clk
00:38:11]} {[%emt 00:00:18]} Rxg6 {[%clk 00:04:03]} {[%emt 00:00:07]} 35. Rc1
{[%clk 00:38:24]} {[%emt 00:00:18]} 1-0

[Event "Vetern-SM 50+ 2025"]
[Site "Uppsala, Sweden"]
[Date "2025.06.29"]
[Round "2.2"]
[White "Gamback, Bjorn"]
[Black "Olsson, Pether"]
[Result "1/2-1/2"]
[TimeControl "90 min for 40 move + 30 min with an increment of 30 sec starting move 1"]
[WhiteTitle "CM"]
[WhiteFideId "1703161"]
[BlackFideId "1726820"]
[WhiteElo "1996"]
[BlackElo "2160"]

1. Nf3 {[%clk 01:30:57]} {[%emt 00:00:02]} Nf6 {[%clk 01:30:27]} {[%emt
00:00:31]} 2. c4 {[%clk 01:31:18]} {[%emt 00:00:11]} b6 {[%clk 01:29:38]}
{[%emt 00:01:18]} 3. b3 {[%clk 01:31:09]} {[%emt 00:00:40]} c5 {[%clk
01:23:26]} {[%emt 00:06:42]} 4. Bb2 {[%clk 01:31:12]} {[%emt 00:00:27]} Bb7
{[%clk 01:23:39]} {[%emt 00:00:17]} 5. e3 {[%clk 01:30:31]} {[%emt 00:01:11]}
e6 {[%clk 01:22:55]} {[%emt 00:01:15]} 6. Be2 {[%clk 01:30:43]} {[%emt
00:00:18]} Be7 {[%clk 01:22:40]} {[%emt 00:00:45]} 7. O-O {[%clk 01:30:41]}
{[%emt 00:00:30]} O-O {[%clk 01:22:55]} {[%emt 00:00:15]} 8. d4 {[%clk
01:29:23]} {[%emt 00:01:49]} cxd4 {[%clk 01:19:48]} {[%emt 00:03:37]} 9. Nxd4
{[%clk 01:27:19]} {[%emt 00:02:34]} Na6 {[%clk 01:16:03]} {[%emt 00:04:15]} 10.
Nd2 {[%clk 01:24:43]} {[%emt 00:03:06]} d5 {[%clk 01:14:19]} {[%emt 00:02:14]}
11. a3 {[%clk 01:13:21]} {[%emt 00:11:51]} Nc5 {[%clk 01:04:00]} {[%emt
00:10:49]} 12. b4 {[%clk 01:10:59]} {[%emt 00:02:52]} Nce4 {[%clk 01:01:51]}
{[%emt 00:02:40]} 13. cxd5 {[%clk 01:09:38]} {[%emt 00:01:51]} Nxd2 {[%clk
00:55:06]} {[%emt 00:07:14]} 14. Qxd2 {[%clk 01:09:11]} {[%emt 00:00:58]} Bxd5
{[%clk 00:54:49]} {[%emt 00:00:48]} 15. Rfd1 {[%clk 00:59:07]} {[%emt
00:10:33]} Rc8 {[%clk 00:43:02]} {[%emt 00:12:16]} 16. Rac1 {[%clk 00:54:57]}
{[%emt 00:04:40]} Rxc1 {[%clk 00:39:44]} {[%emt 00:03:49]} 17. Qxc1 {[%clk
00:53:42]} {[%emt 00:01:45]} Qa8 {[%clk 00:39:36]} {[%emt 00:00:37]} 18. f3
{[%clk 00:52:27]} {[%emt 00:01:46]} Rc8 {[%clk 00:39:33]} {[%emt 00:00:33]} 19.
Qa1 {[%clk 00:50:39]} {[%emt 00:02:18]} a5 {[%clk 00:38:13]} {[%emt 00:01:49]}
1/2-1/2

[Event "Vetern-SM 50+ 2025"]
[Site "Uppsala, Sweden"]
[Date "2025.06.29"]
[Round "2.3"]
[White "Svensson, Hakan"]
[Black "Karlsson, Patrik"]
[Result "1-0"]
[TimeControl "90 min for 40 move + 30 min with an increment of 30 sec starting move 1"]
[WhiteFideId "1714201"]
[BlackFideId "1710834"]
[WhiteElo "2004"]
[BlackElo "1923"]

1. e4 {[%clk 01:30:55]} {[%emt 00:00:04]} e5 {[%clk 01:30:03]} {[%emt
00:00:59]} 2. Nf3 {[%clk 01:31:16]} {[%emt 00:00:09]} Nc6 {[%clk 01:27:00]}
{[%emt 00:03:32]} 3. Bb5 {[%clk 01:31:39]} {[%emt 00:00:08]} Nf6 {[%clk
01:26:46]} {[%emt 00:00:44]} 4. d4 {[%clk 01:32:01]} {[%emt 00:00:08]} Nxe4
{[%clk 01:10:28]} {[%emt 00:16:48]} 5. dxe5 {[%clk 01:28:49]} {[%emt 00:03:42]}
Nc5 {[%clk 01:07:13]} {[%emt 00:03:45]} 6. O-O {[%clk 01:27:12]} {[%emt
00:02:07]} Be7 {[%clk 01:07:11]} {[%emt 00:00:31]} 7. Re1 {[%clk 01:23:40]}
{[%emt 00:04:02]} O-O {[%clk 01:06:51]} {[%emt 00:00:50]} 8. Nc3 {[%clk
01:23:21]} {[%emt 00:00:50]} a6 {[%clk 01:04:07]} {[%emt 00:03:14]} 9. Bf1
{[%clk 01:23:22]} {[%emt 00:00:28]} d6 {[%clk 00:54:14]} {[%emt 00:10:23]} 10.
Bf4 {[%clk 01:09:21]} {[%emt 00:14:31]} dxe5 {[%clk 00:48:11]} {[%emt
00:06:34]} 11. Nxe5 {[%clk 01:08:57]} {[%emt 00:00:53]} Nxe5 {[%clk 00:44:39]}
{[%emt 00:04:03]} 12. Bxe5 {[%clk 01:01:46]} {[%emt 00:07:40]} Bf6 {[%clk
00:37:07]} {[%emt 00:08:02]} 13. Qf3 {[%clk 00:53:32]} {[%emt 00:08:44]} Bxe5
{[%clk 00:26:57]} {[%emt 00:10:41]} 14. Rxe5 {[%clk 00:53:51]} {[%emt
00:00:09]} Nd7 {[%clk 00:21:13]} {[%emt 00:06:15]} 15. Re3 {[%clk 00:53:31]}
{[%emt 00:00:50]} Qf6 {[%clk 00:13:18]} {[%emt 00:08:25]} 16. Qg3 {[%clk
00:53:01]} {[%emt 00:01:00]} Qb6 {[%clk 00:09:03]} {[%emt 00:04:45]} 17. Nd5
{[%clk 00:47:10]} {[%emt 00:06:21]} Qxb2 {[%clk 00:08:31]} {[%emt 00:01:03]} 18.
Rae1 {[%clk 00:47:17]} {[%emt 00:00:22]} Nf6 {[%clk 00:06:34]} {[%emt
00:02:27]} 19. Nxc7 {[%clk 00:46:00]} {[%emt 00:01:48]} Rb8 {[%clk 00:05:54]}
{[%emt 00:01:09]} 20. Ne8 {[%clk 00:44:01]} {[%emt 00:02:28]} Nxe8 {[%clk
00:00:42]} {[%emt 00:05:43]} 21. Rxe8 {[%clk 00:43:09]} {[%emt 00:01:22]} 1-0

[Event "Vetern-SM 50+ 2025"]
[Site "Uppsala, Sweden"]
[Date "2025.06.29"]
[Round "2.4"]
[White "Gromark, Jonas"]
[Black "Eriksson, Kristian"]
[Result "0-1"]
[TimeControl "90 min for 40 move + 30 min with an increment of 30 sec starting move 1"]
[WhiteFideId "137122733"]
[BlackFideId "1705172"]
[WhiteElo "1822"]
[BlackElo "1998"]

1. c4 {[%clk 01:30:28]} {[%emt 00:00:31]} Nf6 {[%clk 01:30:21]} {[%emt
00:00:40]} 2. Nc3 {[%clk 01:30:44]} {[%emt 00:00:14]} e5 {[%clk 01:30:12]}
{[%emt 00:00:38]} 3. e4 {[%clk 01:27:59]} {[%emt 00:03:16]} Bb4 {[%clk
01:26:29]} {[%emt 00:04:13]} 4. g3 {[%clk 01:26:46]} {[%emt 00:01:43]} O-O
{[%clk 01:25:08]} {[%emt 00:01:50]} 5. d3 {[%clk 01:25:38]} {[%emt 00:01:39]}
c6 {[%clk 01:22:36]} {[%emt 00:03:02]} 6. Nf3 {[%clk 01:15:38]} {[%emt
00:10:30]} d5 {[%clk 01:16:51]} {[%emt 00:06:14]} 7. cxd5 {[%clk 01:10:24]}
{[%emt 00:05:46]} cxd5 {[%clk 01:16:07]} {[%emt 00:01:14]} 8. exd5 {[%clk
01:00:45]} {[%emt 00:10:09]} Nxd5 {[%clk 01:08:45]} {[%emt 00:07:51]} 9. Bd2
{[%clk 00:59:15]} {[%emt 00:02:00]} Nc6 {[%clk 01:06:33]} {[%emt 00:02:42]} 10.
Bg2 {[%clk 00:56:57]} {[%emt 00:02:49]} Bxc3 {[%clk 00:51:47]} {[%emt
00:15:15]} 11. bxc3 {[%clk 00:45:59]} {[%emt 00:11:29]} Nb6 {[%clk 00:49:58]}
{[%emt 00:02:19]} 12. O-O {[%clk 00:40:56]} {[%emt 00:05:33]} Qxd3 {[%clk
00:49:20]} {[%emt 00:01:07]} 13. Re1 {[%clk 00:39:37]} {[%emt 00:01:49]} Bg4
{[%clk 00:34:19]} {[%emt 00:15:31]} 14. Re3 {[%clk 00:38:15]} {[%emt 00:01:52]}
Qd7 {[%clk 00:33:21]} {[%emt 00:01:27]} 15. Qc2 {[%clk 00:29:47]} {[%emt
00:08:59]} Rad8 {[%clk 00:31:46]} {[%emt 00:02:04]} 16. Bc1 {[%clk 00:24:45]}
{[%emt 00:05:34]} Qd1+ {[%clk 00:27:36]} {[%emt 00:04:39]} 17. Qxd1 {[%clk
00:20:38]} {[%emt 00:04:37]} Rxd1+ {[%clk 00:27:56]} {[%emt 00:00:10]} 18. Ne1
{[%clk 00:17:56]} {[%emt 00:03:12]} Nc4 {[%clk 00:25:41]} {[%emt 00:02:44]} 19.
Re4 {[%clk 00:13:32]} {[%emt 00:04:55]} f5 {[%clk 00:25:16]} {[%emt 00:00:55]}
20. Rxg4 {[%clk 00:11:22]} {[%emt 00:02:40]} Rxe1+ {[%clk 00:24:44]} {[%emt
00:01:01]} 0-1

[Event "Vetern-SM 50+ 2025"]
[Site "Uppsala, Sweden"]
[Date "2025.06.29"]
[Round "2.5"]
[White "Tobiasson, Bjorn"]
[Black "Brandberg, Joakim"]
[Result "0-1"]
[TimeControl "90 min for 40 move + 30 min with an increment of 30 sec starting move 1"]
[WhiteFideId "1773682"]
[BlackFideId "1712276"]
[WhiteElo "1884"]
[BlackElo "2111"]

1. d4 {[%clk 01:30:55]} {[%emt 00:00:04]} d5 {[%clk 01:30:36]} {[%emt
00:00:24]} 2. c4 {[%clk 01:31:19]} {[%emt 00:00:07]} c6 {[%clk 01:30:59]}
{[%emt 00:00:07]} 3. Nf3 {[%clk 01:31:37]} {[%emt 00:00:13]} Nf6 {[%clk
01:31:12]} {[%emt 00:00:15]} 4. g3 {[%clk 01:31:58]} {[%emt 00:00:10]} Bf5
{[%clk 01:28:39]} {[%emt 00:03:02]} 5. Bg2 {[%clk 01:27:14]} {[%emt 00:05:14]}
e6 {[%clk 01:28:22]} {[%emt 00:00:47]} 6. Nc3 {[%clk 01:25:38]} {[%emt
00:02:07]} h6 {[%clk 01:27:22]} {[%emt 00:01:30]} 7. O-O {[%clk 01:23:57]}
{[%emt 00:02:10]} Nbd7 {[%clk 01:25:51]} {[%emt 00:02:02]} 8. Qb3 {[%clk
01:09:40]} {[%emt 00:14:47]} Qb6 {[%clk 01:21:52]} {[%emt 00:04:28]} 9. Na4
{[%clk 01:02:39]} {[%emt 00:07:31]} Qxb3 {[%clk 01:18:53]} {[%emt 00:03:28]} 10.
axb3 {[%clk 01:02:55]} {[%emt 00:00:16]} Be7 {[%clk 01:15:47]} {[%emt
00:03:35]} 11. c5 {[%clk 00:58:00]} {[%emt 00:05:26]} O-O {[%clk 01:13:17]}
{[%emt 00:02:58]} 12. b4 {[%clk 00:49:07]} {[%emt 00:09:25]} Rfe8 {[%clk
01:05:55]} {[%emt 00:07:51]} 13. b3 {[%clk 00:35:50]} {[%emt 00:13:48]} Rac8
{[%clk 00:55:33]} {[%emt 00:10:51]} 14. Nc3 {[%clk 00:33:25]} {[%emt 00:02:56]}
a6 {[%clk 00:55:07]} {[%emt 00:00:55]} 15. Ne1 {[%clk 00:30:25]} {[%emt
00:03:31]} e5 {[%clk 00:51:20]} {[%emt 00:04:16]} 16. dxe5 {[%clk 00:28:36]}
{[%emt 00:02:20]} Nxe5 {[%clk 00:51:05]} {[%emt 00:00:44]} 17. Bf4 {[%clk
00:28:57]} {[%emt 00:00:09]} Ng6 {[%clk 00:44:18]} {[%emt 00:07:17]} 18. Rd1
{[%clk 00:25:16]} {[%emt 00:04:12]} Nxf4 {[%clk 00:42:03]} {[%emt 00:02:44]} 19.
gxf4 {[%clk 00:23:30]} {[%emt 00:02:17]} Bd8 {[%clk 00:41:20]} {[%emt
00:01:12]} 20. Nd3 {[%clk 00:20:31]} {[%emt 00:03:30]} Bc7 {[%clk 00:40:10]}
{[%emt 00:01:39]} 21. e3 {[%clk 00:20:30]} {[%emt 00:00:31]} Rcd8 {[%clk
00:38:24]} {[%emt 00:02:16]} 22. Ne2 {[%clk 00:19:34]} {[%emt 00:01:26]} Bg4
{[%clk 00:34:11]} {[%emt 00:04:43]} 23. Rd2 {[%clk 00:19:00]} {[%emt 00:01:05]}
Ne4 {[%clk 00:31:39]} {[%emt 00:03:00]} 24. Rc2 {[%clk 00:19:05]} {[%emt
00:00:27]} Bf5 {[%clk 00:28:19]} {[%emt 00:03:50]} 25. Nd4 {[%clk 00:18:26]}
{[%emt 00:01:10]} Bd7 {[%clk 00:26:44]} {[%emt 00:02:03]} 26. h4 {[%clk
00:14:45]} {[%emt 00:04:12]} Ra8 {[%clk 00:25:28]} {[%emt 00:01:46]} 27. Ra1
{[%clk 00:14:41]} {[%emt 00:00:33]} Rab8 {[%clk 00:24:37]} {[%emt 00:01:22]} 28.
Kh2 {[%clk 00:12:49]} {[%emt 00:02:22]} Bc8 {[%clk 00:23:48]} {[%emt 00:01:19]}
29. Bh3 {[%clk 00:12:58]} {[%emt 00:00:21]} Kh7 {[%clk 00:22:27]} {[%emt
00:01:51]} 30. Bxc8 {[%clk 00:12:49]} {[%emt 00:00:40]} Rbxc8 {[%clk 00:22:33]}
{[%emt 00:00:23]} 31. Rg1 {[%clk 00:11:12]} {[%emt 00:02:07]} Nf6 {[%clk
00:21:36]} {[%emt 00:01:26]} 32. Kh3 {[%clk 00:10:57]} {[%emt 00:00:45]} g6
{[%clk 00:20:45]} {[%emt 00:01:20]} 33. Nf3 {[%clk 00:09:40]} {[%emt 00:01:48]}
Nd7 {[%clk 00:20:02]} {[%emt 00:01:13]} 34. Nd4 {[%clk 00:08:39]} {[%emt
00:01:32]} Rg8 {[%clk 00:19:30]} {[%emt 00:01:01]} 35. Rg2 {[%clk 00:08:05]}
{[%emt 00:01:05]} Rce8 {[%clk 00:19:25]} {[%emt 00:00:35]} 36. Rc1 {[%clk
00:07:47]} {[%emt 00:00:49]} Bd8 {[%clk 00:17:53]} {[%emt 00:02:01]} 37. Nf3
{[%clk 00:06:19]} {[%emt 00:01:57]} Bf6 {[%clk 00:17:51]} {[%emt 00:00:32]} 38.
Rg4 {[%clk 00:06:00]} {[%emt 00:00:49]} Bh8 {[%clk 00:17:22]} {[%emt 00:00:59]}
39. Rg2 {[%clk 00:06:18]} {[%emt 00:00:12]} Ra8 {[%clk 00:15:53]} {[%emt
00:02:00]} 40. Nde5 {[%clk 00:03:25]} {[%emt 00:03:23]} Bxe5 {[%clk 00:14:39]}
{[%emt 00:01:44]} 41. Nxe5 {[%clk 00:00:56]} {[%emt 00:02:59]} Nxe5 {[%clk
00:13:46]} {[%emt 00:01:23]} 42. fxe5 {[%clk 00:01:24]} {[%emt 00:00:02]} Rge8
{[%clk 00:11:58]} {[%emt 00:02:17]} 43. f4 {[%clk 00:00:40]} {[%emt 00:01:14]}
a5 {[%clk 00:10:24]} {[%emt 00:02:04]} 44. bxa5 {[%clk 00:28:07]} {[%emt
00:03:04]} Rxa5 {[%clk 00:40:43]} {[%emt 00:00:10]} 45. h5 {[%clk 00:25:50]}
{[%emt 00:02:47]} Ra3 {[%clk 00:38:05]} {[%emt 00:03:08]} 46. hxg6+ {[%clk
00:25:27]} {[%emt 00:00:54]} fxg6 {[%clk 00:38:27]} {[%emt 00:00:07]} 47. Rb1
{[%clk 00:16:17]} {[%emt 00:09:41]} Ra5 {[%clk 00:32:36]} {[%emt 00:06:21]} 48.
Rbg1 {[%clk 00:13:14]} {[%emt 00:03:33]} g5 {[%clk 00:25:50]} {[%emt 00:07:15]}
49. b4 {[%clk 00:08:31]} {[%emt 00:05:14]} Ra3 {[%clk 00:25:22]} {[%emt
00:00:57]} 50. Rg3 {[%clk 00:08:34]} {[%emt 00:00:27]} Rb3 {[%clk 00:24:58]}
{[%emt 00:00:54]} 51. Kg4 {[%clk 00:08:06]} {[%emt 00:00:58]} gxf4 {[%clk
00:20:32]} {[%emt 00:04:56]} 52. exf4 {[%clk 00:08:24]} {[%emt 00:00:13]} Rg8+
{[%clk 00:20:53]} {[%emt 00:00:09]} 53. Kh4 {[%clk 00:03:27]} {[%emt 00:05:27]}
Rgxg3 {[%clk 00:21:01]} {[%emt 00:00:23]} 54. Rxg3 {[%clk 00:03:56]} Rxg3
{[%clk 00:21:18]} {[%emt 00:00:12]} 55. Kxg3 {[%emt 00:00:06]} Kg6 {[%emt
00:00:09]} 56. e6 {[%clk 00:04:02]} {[%emt 00:00:10]} Kf6 {[%clk 00:21:39]}
{[%emt 00:00:09]} 57. f5 {[%clk 00:04:25]} {[%emt 00:00:07]} h5 {[%clk
00:21:16]} {[%emt 00:00:52]} 58. Kh4 {[%clk 00:04:19]} {[%emt 00:00:37]} d4
{[%clk 00:21:34]} {[%emt 00:00:12]} 59. Kxh5 {[%clk 00:04:45]} {[%emt
00:00:04]} d3 {[%clk 00:22:00]} {[%emt 00:00:03]} 60. Kh6 {[%clk 00:05:02]}
{[%emt 00:00:13]} d2 {[%clk 00:21:36]} {[%emt 00:00:54]} 0-1

[Event "Vetern-SM 50+ 2025"]
[Site "Uppsala, Sweden"]
[Date "2025.06.29"]
[Round "2.6"]
[White "Bergfalk, Jonas"]
[Black "Persson, Lars"]
[Result "0-1"]
[TimeControl "90 min for 40 move + 30 min with an increment of 30 sec starting move 1"]
[WhiteFideId "1703986"]
[BlackFideId "1703579"]
[WhiteElo "2030"]
[BlackElo "2041"]

1. c4 {[%clk 01:30:54]} {[%emt 00:00:05]} e5 {[%clk 01:30:43]} {[%emt
00:00:20]} 2. Nc3 {[%clk 01:31:15]} {[%emt 00:00:07]} Nf6 {[%clk 01:30:41]}
{[%emt 00:00:33]} 3. Nf3 {[%clk 01:31:35]} {[%emt 00:00:09]} Nc6 {[%clk
01:29:18]} {[%emt 00:01:54]} 4. g3 {[%clk 01:31:54]} {[%emt 00:00:10]} Bb4
{[%clk 01:26:17]} {[%emt 00:03:31]} 5. Bg2 {[%clk 01:32:14]} {[%emt 00:00:10]}
O-O {[%clk 01:24:47]} {[%emt 00:02:02]} 6. O-O {[%clk 01:32:33]} {[%emt
00:00:10]} d6 {[%clk 01:23:24]} {[%emt 00:01:53]} 7. d3 {[%clk 01:29:17]}
{[%emt 00:03:46]} h6 {[%clk 01:16:40]} {[%emt 00:07:14]} 8. Ne1 {[%clk
01:27:57]} {[%emt 00:01:49]} Bxc3 {[%clk 01:01:17]} {[%emt 00:15:53]} 9. bxc3
{[%clk 01:28:19]} {[%emt 00:00:08]} d5 {[%clk 01:01:18]} {[%emt 00:00:30]} 10.
cxd5 {[%clk 01:27:07]} {[%emt 00:01:42]} Nxd5 {[%clk 01:01:32]} {[%emt
00:00:16]} 11. c4 {[%clk 01:26:20]} {[%emt 00:01:17]} Nf6 {[%clk 00:47:47]}
{[%emt 00:14:15]} 12. Nc2 {[%clk 01:23:14]} {[%emt 00:03:36]} Be6 {[%clk
00:38:53]} {[%emt 00:09:24]} 13. Rb1 {[%clk 01:13:53]} {[%emt 00:09:51]} Rb8
{[%clk 00:35:51]} {[%emt 00:03:32]} 14. Ne3 {[%clk 00:44:08]} {[%emt 00:30:14]}
Qd7 {[%clk 00:29:38]} {[%emt 00:06:44]} 15. Re1 {[%clk 00:42:40]} {[%emt
00:01:58]} Nd4 {[%clk 00:15:06]} {[%emt 00:15:02]} 16. Ba3 {[%clk 00:35:08]}
{[%emt 00:08:01]} Rfd8 {[%clk 00:14:34]} {[%emt 00:01:03]} 17. Bc5 {[%clk
00:27:24]} {[%emt 00:08:13]} b6 {[%clk 00:12:58]} {[%emt 00:02:07]} 18. Bxd4
{[%clk 00:26:19]} {[%emt 00:01:35]} exd4 {[%clk 00:12:32]} {[%emt 00:00:56]} 19.
Nf1 {[%clk 00:24:25]} {[%emt 00:02:23]} Bg4 {[%clk 00:11:43]} {[%emt 00:01:20]}
20. Nd2 {[%clk 00:23:50]} {[%emt 00:01:04]} Re8 {[%clk 00:11:25]} {[%emt
00:00:48]} 21. Nf3 {[%clk 00:22:12]} {[%emt 00:02:08]} c5 {[%clk 00:11:29]}
{[%emt 00:00:27]} 22. Rb2 {[%clk 00:10:45]} {[%emt 00:11:57]} Re7 {[%clk
00:11:12]} {[%emt 00:00:47]} 23. e3 {[%clk 00:10:45]} {[%emt 00:00:29]} dxe3
{[%clk 00:10:40]} {[%emt 00:01:03]} 24. fxe3 {[%clk 00:11:03]} {[%emt
00:00:11]} Rd8 {[%clk 00:10:21]} {[%emt 00:00:50]} 25. Rd2 {[%clk 00:10:39]}
{[%emt 00:00:53]} Rde8 {[%clk 00:09:18]} {[%emt 00:01:34]} 26. Rde2 {[%clk
00:09:09]} {[%emt 00:02:00]} Rd8 {[%clk 00:08:01]} {[%emt 00:01:47]} 27. Rd2
{[%clk 00:09:29]} {[%emt 00:00:09]} Qe8 {[%clk 00:08:15]} {[%emt 00:00:16]} 28.
Rde2 {[%clk 00:08:44]} {[%emt 00:01:15]} Nd7 {[%clk 00:07:13]} {[%emt
00:01:32]} 29. d4 {[%clk 00:08:54]} {[%emt 00:00:20]} Bxf3 {[%clk 00:07:16]}
{[%emt 00:00:28]} 30. Bxf3 {[%clk 00:09:10]} {[%emt 00:00:14]} Ne5 {[%clk
00:07:28]} {[%emt 00:00:18]} 31. Bd5 {[%clk 00:09:15]} {[%emt 00:00:24]} Rxd5
{[%clk 00:06:08]} {[%emt 00:01:50]} 32. cxd5 {[%clk 00:09:37]} {[%emt
00:00:08]} Nf3+ {[%clk 00:06:22]} {[%emt 00:00:16]} 33. Kf2 {[%clk 00:09:46]}
{[%emt 00:00:21]} Nxe1 {[%clk 00:06:26]} {[%emt 00:00:26]} 34. Rxe1 {[%clk
00:09:29]} {[%emt 00:00:48]} cxd4 {[%clk 00:05:46]} {[%emt 00:01:09]} 35. Qxd4
{[%clk 00:09:43]} {[%emt 00:00:16]} Re4 {[%clk 00:05:33]} {[%emt 00:00:44]} 36.
Qd3 {[%clk 00:08:39]} {[%emt 00:01:34]} Qa4 {[%clk 00:05:07]} {[%emt 00:00:55]}
37. Re2 {[%clk 00:08:56]} {[%emt 00:00:13]} Qc4 {[%clk 00:04:49]} {[%emt
00:00:49]} 38. Qxc4 {[%clk 00:07:59]} {[%emt 00:01:26]} Rxc4 {[%clk 00:05:17]}
{[%emt 00:00:02]} 39. Rd2 {[%clk 00:08:22]} {[%emt 00:00:07]} Kf8 {[%clk
00:05:10]} {[%emt 00:00:38]} 40. Ke2 {[%clk 00:07:46]} {[%emt 00:01:06]} Ke7
{[%clk 00:02:08]} {[%emt 00:03:32]} 41. Kd3 {[%clk 00:05:47]} {[%emt 00:02:28]}
b5 {[%clk 00:18:06]} {[%emt 00:14:32]} 42. Rf2 {[%clk 00:32:08]} {[%emt
00:04:09]} f6 {[%clk 00:14:57]} {[%emt 00:03:40]} 43. Rf4 {[%clk 00:18:53]}
{[%emt 00:13:45]} Rxf4 {[%clk 00:07:41]} {[%emt 00:07:45]} 44. gxf4 {[%clk
00:19:14]} {[%emt 00:00:10]} f5 {[%clk 00:03:58]} {[%emt 00:04:13]} 45. e4
{[%clk 00:19:10]} {[%emt 00:00:34]} fxe4+ {[%clk 00:04:19]} {[%emt 00:00:08]}
46. Kxe4 {[%clk 00:19:34]} {[%emt 00:00:06]} Kd6 {[%clk 00:04:04]} {[%emt
00:00:46]} 47. Kd4 {[%clk 00:19:29]} {[%emt 00:00:34]} a5 {[%clk 00:03:52]}
{[%emt 00:00:43]} 48. Ke4 {[%clk 00:18:56]} {[%emt 00:01:03]} b4 {[%emt
00:01:17]} 0-1